fUSD/lending_fUSD_20240528
["ID","MTS","AMOUNT","RATE_DAILY","PERIOD"]
[328108445,1716867048590,-150.0,0.00032869,6]
[328108446,1716867048600,-400.0,0.0003287,2]
[328108447,1716867048610,-102.38314178,0.0003287,3]
[328108448,1716867048642,-942.13914397,0.00029003,2]
[328108449,1716867048654,-441.17418763,0.00029003,2]
[328108450,1716867048666,-338.57008755,0.00029003,2]
[328108451,1716867048698,-880.36175698,0.00029003,2]
[328108452,1716867048709,-596.8060094,0.00029003,2]
[328108453,1716867048721,-1243.67771783,0.00029003,2]
[328108454,1716867048733,-450.180002,0.00029003,2]
[328108455,1716867048746,-4936.81109464,0.00029003,2]
[328108456,1716867048755,-500.0,0.00029815,2]
[328108457,1716867048765,-500.0,0.00029815,2]
[328108458,1716867048775,-115.72208585,0.00029815,2]
[328108459,1716867048787,-384.27791415,0.00029815,2]
[328108460,1716867048799,-500.0,0.00029815,2]
[328108461,1716867048810,-617.86228974,0.00032021,2]
[328108462,1716867048822,-1027.13771026,0.00032021,2]
[328108463,1716867048833,-150.0,0.00032431,2]
[328108464,1716867048843,-150.0,0.00032681,2]
[328108465,1716867048853,-628.15062938,0.0003287,3]
[328108466,1716867048865,-1017.6830018,0.0003287,3]
[328108467,1716867048877,-1186.64880089,0.0003287,3]
[328108468,1716867048888,-329.70014336,0.0003287,3]
[328108469,1716867048900,-453.999994,0.0003287,3]
[328108470,1716867048912,-342.3,0.0003287,3]
[328108471,1716867048924,-859.49735212,0.0003287,3]
[328108472,1716867048936,-684.69401,0.0003287,3]
[328108473,1716867049130,-293.93214788,0.0002902,2]
[328108474,1716867049140,-442.802,0.00029022,2]
[328108475,1716867049150,-500.0,0.00029815,2]
[328108476,1716867049161,-126.24664656,0.00029815,2]
[328108477,1716867049172,-373.75335344,0.00029815,2]
[328108478,1716867049182,-500.0,0.00029815,2]
[328108479,1716867049191,-500.0,0.00029815,2]
[328108480,1716867049201,-440.0,0.00032022,2]
[328108481,1716867049210,-1496.29,0.00032369,10]
[328108482,1716867049220,-150.0,0.00032426,2]
[328108483,1716867049230,-150.0,0.00032433,2]
[328108484,1716867049240,-150.0,0.00032438,2]
[328108485,1716867049250,-150.0,0.00032445,2]
[328108486,1716867049260,-150.0,0.00032453,2]
[328108487,1716867049269,-150.0,0.00032457,2]
[328108488,1716867049278,-150.0,0.00032485,2]
[328108489,1716867049288,-150.0,0.00032487,2]
[328108490,1716867049299,-150.0,0.00032493,2]
[328108491,1716867049309,-150.0,0.00032497,2]
[328108492,1716867049318,-150.0,0.00032502,2]
[328108493,1716867049327,-150.0,0.00032505,2]
[328108494,1716867049337,-150.0,0.00032513,2]
[328108495,1716867049347,-150.0,0.00032515,2]
[328108496,1716867049357,-150.0,0.00032516,2]
[328108497,1716867049367,-150.0,0.00032521,2]
[328108498,1716867049377,-150.0,0.00032526,2]
[328108499,1716867049386,-150.0,0.00032528,2]
[328108500,1716867049396,-150.0,0.00032533,2]
[328108501,1716867049406,-150.0,0.00032542,2]
[328108502,1716867049416,-150.0,0.00032557,2]
[328108503,1716867049426,-150.0,0.00032559,2]
[328108504,1716867049436,-150.0,0.00032565,2]
[328108505,1716867049445,-150.0,0.00032571,2]
[328108506,1716867049455,-150.0,0.00032586,2]
[328108507,1716867049464,-150.0,0.00032588,2]
[328108508,1716867049473,-150.0,0.00032623,2]
[328108509,1716867049483,-150.0,0.00032641,2]
[328108510,1716867049493,-150.0,0.00032656,2]
[328108511,1716867049503,-150.0,0.00032668,2]
[328108512,1716867049513,-150.0,0.00032675,2]
[328108513,1716867049522,-5136.02860031,0.0003287,3]
[328108514,1716867049534,-569.64,0.0003287,3]
[328108515,1716867049548,-807.46628027,0.0003287,3]
[328108516,1716867049557,-4145.02136871,0.0003287,3]
[328108517,1716867049569,-254.86173603,0.0003287,3]
[328108518,1716867049581,-684.84,0.0003287,3]
[328108519,1716867049593,-714.2364726,0.0003287,3]
[328108520,1716867049606,-853.5375,0.0003287,3]
[328108521,1716867049618,-6823.3,0.0003287,3]
[328108522,1716867049630,-3422.80245,0.0003287,3]
[328108523,1716867049641,-1518.94704007,0.0003287,3]
[328108524,1716867049652,-155.6587449,0.00032873,4]
[328108525,1716867049662,-200.50658805,0.00032873,4]
[328108526,1716867049671,-308.65695453,0.00032873,4]
[328108527,1716867049681,-1000.0,0.00032873,2]
[328108528,1716867049691,-98.48840333,0.00032874,4]
[328108529,1716867049703,-56.99877244,0.00032874,4]
[328108530,1716867049713,-222.86080453,0.00032874,4]
[328108531,1716867049723,-28.39042303,0.00032874,4]
[328108532,1716867049735,-147.09248056,0.00032874,4]
[328108533,1716867049744,-206.02737392,0.00032874,4]
[328108534,1716867049754,-206.84278778,0.00032874,4]
[328108535,1716867049764,-155.96690999,0.00032874,4]
[328108536,1716867049773,-168.67641696,0.00032874,4]
[328108537,1716867049783,-158.73125222,0.00032874,4]
[328108538,1716867049796,-1000.0,0.00032874,4]
[328108539,1716867049807,-500.0,0.00032876,6]
[328108540,1716867049817,-812.17,0.00032876,6]
[328108541,1716867049826,-500.0,0.00032876,6]
[328108542,1716867049836,-1000.0,0.00032877,13]
[328108543,1716867049846,-1000.0,0.00032877,13]
[328108544,1716867049855,-1000.0,0.00032877,13]
[328108545,1716867049865,-1000.0,0.00032877,13]
[328108546,1716867049875,-1000.0,0.00032877,13]
[328108547,1716867049885,-1000.0,0.00032877,13]
[328108548,1716867049895,-1000.0,0.00032877,13]
[328108549,1716867049905,-1000.0,0.00032877,13]
[328108550,1716867049915,-1000.0,0.00032877,13]
[328108551,1716867049924,-700.40428988,0.00032877,13]
[328108552,1716867049936,-299.59571012,0.00032877,13]
[328108553,1716867049946,-115.40428988,0.00032877,13]
[328108554,1716867049957,-582.26515295,0.00032877,13]
[328108556,1716867225605,76444.0,0.00013,2]
[328108557,1716867225634,79561.76614079,0.00013,2]
[328108558,1716867399303,2481341.88175574,0.00013,2]
[328108565,1716868042141,-242.13873224,0.00013972,2]
[328108573,1716868235045,-155.33550862,0.00013873,2]
[328108575,1716868235055,-1406.65179496,0.00013972,2]
[328108576,1716868235067,-249.04897175,0.00013972,2]
[328108577,1716868235077,-152.73,0.00013973,2]
[328108578,1716868235086,-160.78,0.00013973,2]
[328108579,1716868235096,-3158.93430122,0.00017225,2]
[328108580,1716868235105,-150.0,0.00017807,2]
[328108581,1716868235114,-210.0,0.00019588,2]
[328108582,1716868235124,-499.99,0.00019588,2]
[328108583,1716868235133,-150.99,0.00019726,2]
[328108584,1716868235143,-199.9,0.00020418,2]
[328108585,1716868235155,-150.0,0.00021178,2]
[328108586,1716868235166,-2954.0,0.000237,3]
[328108587,1716868235176,-162.78112868,0.0002397,2]
[328108588,1716868235185,-1455.20495939,0.00024,3]
[328108589,1716868235195,-418.42,0.00024248,2]
[328108590,1716868235206,-158.80162648,0.00024278,2]
[328108591,1716868235217,-927.84406944,0.00025,2]
[328108592,1716868235227,-209.64,0.00025388,2]
[328108593,1716868235445,-162.78112868,0.00025671,2]
[328108594,1716868235455,-2437.12,0.00025711,2]
[328108595,1716868235466,-170.17,0.00025766,2]
[328108596,1716868235476,-375.52,0.00025769,2]
[328108597,1716868235486,-3502.34,0.00025777,2]
[328108598,1716868235495,-384.19,0.00025807,2]
[328108599,1716868235506,-162.78112868,0.00025911,2]
[328108600,1716868235515,-5262.27844568,0.00025933,2]
[328108602,1716868235529,-3420.28512767,0.00025933,2]
[328108603,1716868235541,-1147.30992737,0.00025933,2]
[328108604,1716868235552,-1327.4365,0.00025933,2]
[328108605,1716868235564,-374.313495,0.00025933,2]
[328108606,1716868235575,-340.34,0.00025933,2]
[328108607,1716868235587,-6936.01689433,0.00025933,2]
[328108608,1716868235599,-432.92,0.00025933,2]
[328108609,1716868235609,-260.6210486,0.00025933,2]
[328108610,1716868235620,-3971.07024,0.00025933,2]
[328108611,1716868235632,-363.6,0.00025933,2]
[328108612,1716868235643,-324.77764658,0.00025933,2]
[328108613,1716868235654,-832.73067477,0.00025933,2]
[328108614,1716868235663,-167.31761538,0.00025952,2]
[328108615,1716868235672,-250.0,0.00026082,2]
[328108616,1716868235682,-165.08,0.00026152,2]
[328108617,1716868235691,-548.09302787,0.00026302,2]
[328108618,1716868235701,-162.78112868,0.0002646,2]
[328108619,1716868235710,-396.64749758,0.00026512,2]
[328108620,1716868235722,-21.77250242,0.00026512,2]
[328108621,1716868235731,-154.6,0.00026551,2]
[328108622,1716868235740,-884.03,0.00026604,2]
[328108623,1716868235750,-12.4769861,0.00026673,2]
[328108624,1716868235761,-161.05492134,0.00026673,2]
[328108625,1716868235771,-178.12007866,0.00026698,2]
[328108626,1716868235782,-2.66122134,0.00026698,2]
[328108627,1716868235792,-279.485,0.00026698,2]
[328108628,1716868235801,-779.64400592,0.00026698,2]
[328108629,1716868235817,-492.27359408,0.00026698,2]
[328108630,1716868235826,-479.897,0.00026698,2]
[328108631,1716868235836,-1247.36037009,0.0002673,2]
[328108632,1716868235846,-151.0,0.00026918,30]
[328108633,1716868235855,-500.0,0.0002729,2]
[328108634,1716868235865,-805.91709047,0.0002739,2]
[328108635,1716868235875,-151.0,0.00027467,7]
[328108636,1716868235885,-1323.77163581,0.00028,2]
[328108637,1716868235898,-6540.08570516,0.00028,2]
[328108638,1716868235908,-155.0,0.00028,2]
[328108639,1716868235918,-3032.03345484,0.00028019,2]
[328108640,1716868235927,-151.0,0.00028028,4]
[328108641,1716868235937,-159.70113009,0.00028125,2]
[328108642,1716868235947,-384.19,0.00028547,2]
[328108643,1716868235957,-151.0,0.000286,2]
[328108644,1716868235968,-418.42,0.00028776,2]
[328108645,1716868235977,-2452.07296046,0.000288,2]
[328108646,1716868235989,-325.09234905,0.000288,2]
[328108647,1716868236001,-176.83469049,0.000288,2]
[328108648,1716868236011,-375.52,0.0002899,2]
[328108649,1716868236020,-2855.99520551,0.00029,2]
[328108650,1716868236032,-339.7200004,0.00029,2]
[328108663,1716868238054,-1804.28479409,0.00029,2]
[328108664,1716868238064,-1483.01564474,0.00029019,2]
[328108665,1716868238074,-5484.92878436,0.0002902,2]
[328108666,1716868238084,-269.6049849,0.00029051,2]
[328108667,1716868238094,-1246.9,0.0002914,10]
[328108668,1716868238103,-1039.09,0.0002914,10]
[328108669,1716868238113,-5139.8609632,0.0002915,2]
[328108670,1716868238124,-494860.1390368,0.0002915,2]
[328108671,1716868238134,-2500.0,0.00029151,2]
[328108672,1716868238143,-3420.137,0.00029151,2]
[328108673,1716868238153,-7500.0,0.00029151,2]
[328108674,1716868238162,-210.9588,0.00029195,2]
[328108675,1716868238172,-179.64019901,0.00029196,2]
[328108676,1716868238182,-220.91454803,0.00029286,2]
[328108677,1716868238191,-975.0,0.00029296,2]
[328108678,1716868238200,-357.0,0.00029296,2]
[328108679,1716868238210,-614.0,0.00029296,2]
[328108680,1716868238221,-1265.0,0.00029296,2]
[328108681,1716868238230,-1225.0,0.00029296,2]
[328108682,1716868238239,-1645.0,0.00029296,2]
[328108683,1716868238247,-440.0,0.00029296,2]
[328108684,1716868238257,-445.0,0.00029296,2]
[328108685,1716868238267,-808.0,0.00029296,2]
[328108686,1716868238277,-2398.0,0.00029296,2]
[328108687,1716868238287,-1137.0,0.00029296,2]
[328108688,1716868238296,-725.771,0.00029296,2]
[328108689,1716868238305,-216.0,0.00029296,2]
[328108690,1716868238314,-3166.0,0.00029296,2]
[328108691,1716868238325,-5766.0,0.00029296,2]
[328108692,1716868238334,-5140.0,0.00029296,2]
[328108693,1716868238343,-1467.0,0.00029296,2]
[328108694,1716868238352,-37944.0,0.00029296,2]
[328108695,1716868238362,-269.60498489,0.00029658,2]
[328108696,1716868238372,-213.20179296,0.00029713,2]
[328108697,1716868238381,-434.97963273,0.00029713,2]
[328108698,1716868238391,-2765.5766,0.00029714,2]
[328108699,1716868238401,-6662.3053,0.00029714,2]
[328108700,1716868238410,-12045.0532,0.00029714,2]
[328108701,1716868238419,-327.67529192,0.000299,2]
[328108702,1716868238429,-884.03,0.0002993,2]
[328108703,1716868238441,-155.0,0.0003,2]
[328108704,1716868238453,-844.71246363,0.0003,10]
[328108705,1716868238462,-615.84835543,0.0003,30]
[328108706,1716868238473,-5695.44208129,0.0003,2]
[328108707,1716868238484,-23856.49509959,0.0003,4]
[328108708,1716868238494,-19427.2898834,0.0003,4]
[328108711,1716868238504,-7392.07164541,0.0003,2]
[328108712,1716868238514,-3763.4411,0.0003,7]
[328108714,1716868238526,-150.0,0.0003,10]
[328108716,1716868238535,-203.26450767,0.0003,10]
[328108718,1716868238544,-207.0,0.0003,2]
[328108720,1716868238554,-1000.0,0.00030036,2]
[328108722,1716868238565,-500.0,0.00030136,2]
[328108725,1716868238574,-500.0,0.00030136,2]
[328108727,1716868238583,-647.68432884,0.00030136,2]
[328108728,1716868238592,-500.0,0.00030136,2]
[328108729,1716868238602,-500.0,0.00030136,2]
[328108730,1716868238611,-508.00642782,0.00030136,6]
[328108731,1716868238621,-500.0,0.00030136,6]
[328108732,1716868238631,-500.0,0.00030136,6]
[328108733,1716868238640,-500.0,0.00030136,6]
[328108734,1716868238649,-150.0,0.00030136,6]
[328108735,1716868238659,-150.0,0.00030136,6]
[328108736,1716868238669,-150.0,0.00030136,6]
[328108737,1716868238680,-500.0,0.00030136,6]
[328108738,1716868238689,-500.0,0.00030136,6]
[328108739,1716868238699,-500.0,0.00030136,6]
[328108740,1716868238708,-392.75630023,0.00030136,6]
[328108741,1716868238720,-498.55,0.00030136,6]
[328108742,1716868238730,-500.0,0.00030136,2]
[328108743,1716868238739,-500.0,0.00030136,2]
[328108744,1716868238748,-500.0,0.00030136,2]
[328108745,1716868238757,-500.0,0.00030136,2]
[328108746,1716868238766,-500.0,0.00030136,2]
[328108747,1716868238776,-500.0,0.00030136,2]
[328108748,1716868238786,-500.0,0.00030136,2]
[328108749,1716868238796,-476.8,0.00030136,2]
[328108750,1716868238806,-557.83458563,0.00030136,6]
[328108751,1716868238815,-500.0,0.00030136,2]
[328108752,1716868238826,-500.0,0.00030136,2]
[328108753,1716868238835,-500.0,0.00030136,2]
[328108754,1716868238845,-500.0,0.00030136,2]
[328108755,1716868238854,-500.0,0.00030136,2]
[328108756,1716868238864,-431.99,0.00030136,2]
[328108757,1716868238873,-500.0,0.00030136,2]
[328108758,1716868238883,-500.0,0.00030136,2]
[328108759,1716868238892,-500.0,0.00030136,2]
[328108760,1716868238902,-500.0,0.00030136,6]
[328108761,1716868238911,-500.0,0.00030136,6]
[328108762,1716868238920,-500.0,0.00030136,6]
[328108763,1716868238929,-500.0,0.00030136,6]
[328108764,1716868238938,-500.0,0.00030136,6]
[328108765,1716868238947,-506.96361744,0.00030136,6]
[328108766,1716868238956,-561.26676236,0.00030136,6]
[328108767,1716868238967,-500.0,0.00030136,6]
[328108768,1716868238976,-500.0,0.00030136,6]
[328108769,1716868238985,-500.0,0.00030136,6]
[328108770,1716868238994,-500.0,0.00030136,6]
[328108771,1716868239003,-500.0,0.00030136,6]
[328108772,1716868239012,-500.0,0.00030136,6]
[328108773,1716868239022,-500.0,0.00030136,6]
[328108774,1716868239032,-500.0,0.00030136,6]
[328108775,1716868239041,-366.16305931,0.00030136,6]
[328108776,1716868239051,-500.0,0.00030136,6]
[328108777,1716868239060,-500.0,0.00030136,6]
[328108778,1716868239070,-439.64125514,0.00030136,6]
[328108779,1716868239079,-500.0,0.00030136,6]
[328108780,1716868239089,-500.0,0.00030136,6]
[328108781,1716868239098,-500.0,0.00030136,6]
[328108782,1716868239108,-500.0,0.00030136,2]
[328108783,1716868239117,-500.0,0.00030136,2]
[328108784,1716868239126,-500.0,0.00030136,2]
[328108785,1716868239135,-500.0,0.00030136,2]
[328108786,1716868239145,-500.0,0.00030136,2]
[328108787,1716868239154,-500.0,0.00030136,2]
[328108788,1716868239163,-500.0,0.00030136,2]
[328108789,1716868239172,-573.35955401,0.00030136,2]
[328108790,1716868239181,-500.0,0.00030136,6]
[328108791,1716868239190,-500.0,0.00030136,6]
[328108792,1716868239199,-500.0,0.00030136,6]
[328108793,1716868239208,-501.34303205,0.00030136,6]
[328108794,1716868239219,-509.91174663,0.00030136,6]
[328108795,1716868239228,-175.618677,0.00030164,120]
[328108796,1716868239238,-162.78112872,0.00030172,7]
[328108797,1716868239247,-269.60498489,0.00030265,2]
[328108798,1716868239257,-151.0,0.00030481,2]
[328108799,1716868239267,-155.91141741,0.00030674,7]
[328108800,1716868239277,-200.0,0.00030764,120]
[328108801,1716868239287,-1000.0,0.00030764,120]
[328108802,1716868239296,-418.42,0.00031039,2]
[328108803,1716868239306,-152.10323354,0.00031092,7]
[328108804,1716868239316,-1000.0,0.00031136,10]
[328108805,1716868239325,-157.313,0.00031246,7]
[328108806,1716868239335,-2100.0,0.00031246,2]
[328108807,1716868239345,-384.19,0.00031286,2]
[328108808,1716868239354,-706.71,0.00031397,2]
[328108809,1716868239363,-500.0,0.00031448,6]
[328108810,1716868239373,-1000.0,0.00031684,10]
[328108811,1716868239383,-151.0,0.00031777,2]
[328108812,1716868239394,-250.49088,0.00031777,2]
[328108813,1716868239403,-2389.7228916,0.0003179,3]
[328108814,1716868239412,-185.64369851,0.00031825,2]
[328108815,1716868239421,-150.8,0.0003188,2]
[328108816,1716868239430,-150.8,0.0003188,2]
[328108817,1716868239440,-150.8,0.0003188,2]
[328108818,1716868239453,-150.8,0.0003188,2]
[328108819,1716868239463,-558.0,0.00031884,5]
[328108820,1716868239477,-22965.45389425,0.00031884,2]
[328108821,1716868239488,-8830.0300997,0.00031887,2]
[328108822,1716868239497,-500.0,0.00031889,6]
[328108823,1716868239507,-500.0,0.00031889,6]
[328108824,1716868239518,-500.0,0.00031889,6]
[328108825,1716868239527,-282.33419436,0.00031889,6]
[328108826,1716868239537,-500.0,0.00031889,6]
[328108827,1716868239546,-500.0,0.00031889,6]
[328108828,1716868239556,-470.39892393,0.00031889,6]
[328108829,1716868239565,-28506.92517163,0.0003189,11]
[328108830,1716868239574,-605050.62800891,0.0003189,2]
[328108831,1716868239583,-151.0,0.0003189,7]
[328108832,1716868239593,-151.0,0.0003189,7]
[328108833,1716868239602,-158.805578,0.0003189,7]
[328108834,1716868239612,-224.870756,0.0003189,7]
[328108835,1716868239621,-224.870756,0.0003189,7]
[328108836,1716868239630,-154.362883,0.0003189,7]
[328108837,1716868239639,-165.766048,0.0003189,7]
[328108838,1716868239648,-151.0,0.0003189,7]
[328108839,1716868239657,-153.565621,0.0003189,7]
[328108840,1716868239667,-152.0,0.00031925,3]
[328108841,1716868239676,-2389.72289154,0.00031932,3]
[328108842,1716868239686,-334.02343811,0.00032,4]
[328108843,1716868239695,-5000.0,0.00032005,2]
[328108844,1716868239704,-2389.72289154,0.00032074,3]
[328108845,1716868239714,-150.0,0.00032126,2]
[328108846,1716868239726,-2500.0,0.00032129,2]
[328108847,1716868239735,-2500.0,0.00032131,2]
[328108848,1716868239744,-2500.0,0.00032157,2]
[328108849,1716868239754,-5000.0,0.00032208,2]
[328108850,1716868239763,-375.52,0.00032211,2]
[328108851,1716868239772,-2389.72289154,0.00032216,4]
[328108852,1716868239782,-1000.0,0.00032232,10]
[328108853,1716868239791,-500.0,0.00032232,2]
[328108854,1716868239800,-150.8,0.00032286,2]
[328108855,1716868239809,-1853.98,0.00032286,2]
[328108856,1716868239819,-500.0,0.00032295,6]
[328108857,1716868239828,-357.0,0.00032296,2]
[328108858,1716868239837,-614.0,0.00032296,2]
[328108859,1716868239847,-1265.0,0.00032296,2]
[328108860,1716868239856,-1225.0,0.00032296,2]
[328108861,1716868239865,-1645.0,0.00032296,2]
[328108862,1716868239875,-440.0,0.00032296,2]
[328108863,1716868239885,-445.0,0.00032296,2]
[328108864,1716868239895,-312.661,0.00032296,2]
[328108865,1716868239904,-2398.0,0.00032296,2]
[328108866,1716868239914,-1137.0,0.00032296,2]
[328108867,1716868239923,-216.0,0.00032296,2]
[328108868,1716868239932,-3063.823,0.00032296,2]
[328108869,1716868239941,-5766.0,0.00032296,2]
[328108870,1716868239951,-5140.0,0.00032296,2]
[328108871,1716868239960,-1019.414,0.00032296,2]
[328108872,1716868239974,-37944.0,0.00032296,2]
[328108873,1716868239983,-258.0,0.000323,2]
[328108874,1716868239992,-302.0,0.00032311,4]
[328108875,1716868240002,-2389.72289154,0.00032358,4]
[328108876,1716868240011,-150.0,0.00032364,2]
[328108877,1716868240020,-150.0,0.00032373,2]
[328108878,1716868240030,-1053.0,0.000324,7]
[328108879,1716868240039,-215.92459068,0.000324,4]
[328108880,1716868240048,-215.92459068,0.000324,4]
[328108881,1716868240057,-215.92459068,0.000324,4]
[328108882,1716868240066,-215.92459068,0.000324,4]
[328108883,1716868240076,-215.92459068,0.000324,4]
[328108884,1716868240085,-500.0,0.00032426,6]
[328108885,1716868240094,-871.06,0.00032427,2]
[328108886,1716868240103,-871.06,0.00032427,2]
[328108887,1716868240113,-369.27,0.00032427,2]
[328108888,1716868240122,-423.46,0.00032427,2]
[328108889,1716868240132,-1548.53,0.00032433,2]
[328108890,1716868240141,-150.0,0.00032435,2]
[328108891,1716868240150,-2500.0,0.00032441,2]
[328108892,1716868240160,-150.0,0.00032452,2]
[328108893,1716868240169,-150.0,0.00032452,2]
[328108894,1716868240178,-150.0,0.00032452,2]
[328108895,1716868240187,-150.0,0.00032463,2]
[328108896,1716868240196,-150.0,0.00032471,2]
[328108897,1716868240206,-150.0,0.00032473,2]
[328108898,1716868240216,-150.0,0.0003248,2]
[328108899,1716868240226,-150.0,0.00032481,2]
[328108900,1716868240235,-150.0,0.00032481,2]
[328108901,1716868240244,-5000.0,0.00032485,2]
[328108902,1716868240253,-500.0,0.00032492,2]
[328108903,1716868240263,-150.0,0.00032493,2]
[328108904,1716868240272,-150.0,0.00032493,2]
[328108905,1716868240282,-150.0,0.00032493,2]
[328108906,1716868240291,-150.0,0.00032495,2]
[328108907,1716868240301,-150.0,0.00032499,2]
[328108908,1716868240310,-2389.72289154,0.000325,4]
[328108909,1716868240320,-314.71743852,0.00032503,2]
[328108910,1716868240329,-800.0,0.00032506,10]
[328108911,1716868240338,-150.0,0.00032506,2]
[328108912,1716868240347,-150.0,0.00032508,2]
[328108913,1716868240357,-150.0,0.00032511,2]
[328108914,1716868240366,-150.0,0.00032512,2]
[328108915,1716868240376,-150.0,0.00032513,2]
[328108916,1716868240385,-150.0,0.00032514,2]
[328108917,1716868240394,-150.0,0.00032514,2]
[328108918,1716868240404,-150.0,0.00032515,2]
[328108919,1716868240414,-150.0,0.00032516,2]
[328108921,1716868240423,-150.0,0.00032521,2]
[328108923,1716868240433,-150.0,0.00032521,2]
[328108925,1716868240447,-150.0,0.00032528,2]
[328108927,1716868240456,-150.0,0.00032531,2]
[328108929,1716868240465,-2501.49,0.00032531,2]
[328108931,1716868240479,-150.0,0.00032532,2]
[328108933,1716868240489,-150.0,0.00032535,2]
[328108935,1716868240498,-150.0,0.00032535,2]
[328108937,1716868240508,-150.0,0.00032536,2]
[328108939,1716868240520,-150.0,0.00032538,2]
[328108940,1716868240530,-155.24281723,0.00032543,7]
[328108941,1716868240541,-150.0,0.00032546,2]
[328108942,1716868240551,-150.0,0.00032548,2]
[328108943,1716868240561,-150.0,0.00032552,2]
[328108944,1716868240571,-150.0,0.00032554,2]
[328108945,1716868240580,-150.0,0.00032557,2]
[328108946,1716868240589,-150.0,0.00032558,2]
[328108947,1716868240600,-150.0,0.00032561,2]
[328108948,1716868240610,-150.0,0.00032561,2]
[328108949,1716868240619,-150.0,0.00032565,2]
[328108950,1716868240629,-150.0,0.00032567,2]
[328108951,1716868240638,-150.0,0.00032569,2]
[328108952,1716868240648,-150.0,0.00032574,2]
[328108953,1716868240657,-150.0,0.00032575,2]
[328108954,1716868240667,-150.0,0.00032578,2]
[328108955,1716868240677,-150.0,0.00032581,2]
[328108956,1716868240687,-185.64369851,0.00032588,2]
[328108957,1716868240697,-150.8,0.0003259,2]
[328108958,1716868240707,-150.0,0.00032593,2]
[328108959,1716868240720,-150.0,0.00032594,2]
[328108960,1716868240732,-1025.966,0.00032596,2]
[328108961,1716868240742,-179.640199,0.00032597,2]
[328108962,1716868240751,-150.0,0.00032598,2]
[328108963,1716868240761,-150.0,0.000326,2]
[328108964,1716868240770,-107341.17719337,0.000326,7]
[328108965,1716868240785,-3195.55858203,0.000326,7]
[328108966,1716868240796,-2410.52708,0.000326,7]
[328108967,1716868240811,-6891.2,0.000326,7]
[328108968,1716868240823,-324.13689145,0.000326,7]
[328108969,1716868240834,-34009.99999998,0.000326,7]
[328108970,1716868240845,-846.30282895,0.000326,7]
[328108971,1716868240857,-68000.00000002,0.000326,7]
[328108972,1716868240868,-1596.17412447,0.000326,7]
[328108973,1716868240879,-2222.19236669,0.000326,7]
[328108974,1716868240972,-269.60498489,0.00030872,2]
[328108975,1716868240981,-1652.51521513,0.000326,7]
[328108976,1716868240993,-21510.21571791,0.000326,7]
[328108977,1716868241002,-179.717234,0.000326,7]
[328108978,1716868241011,-156.279471,0.000326,7]
[328108979,1716868241020,-225.131461,0.000326,7]
[328108980,1716868241030,-151.0,0.000326,7]
[328108981,1716868241039,-151.0,0.000326,7]
[328108982,1716868241048,-157.43164,0.000326,7]
[328108983,1716868241057,-151.0,0.000326,7]
[328108984,1716868241066,-152.489411,0.000326,7]
[328108985,1716868241076,-156.054165,0.000326,7]
[328108986,1716868241085,-151.0,0.000326,7]
[328108987,1716868241094,-151.0,0.000326,7]
[328108988,1716868241103,-151.0,0.000326,7]
[328108989,1716868241263,-151.0,0.000326,7]
[328108990,1716868241273,-151.0,0.000326,7]
[328108991,1716868241282,-151.0,0.000326,7]
[328108992,1716868241292,-201.493454,0.000326,7]